bitfinex/quotes_SOLUSD_20250111
["timestamp","ask_amount","ask_price","bid_price","bid_amount"]
[1736608424488,20.0,187.85,187.8,0.0533]
[1736608426962,20.0,187.86,187.8,0.0533]
[1736608429284,1.5484,187.88,187.8,0.0533]
[1736608433292,20.0,187.88,187.8,0.0533]
[1736608434385,20.0,187.88,187.8,135.4533]
[1736608440498,20.0,187.88,187.8,0.0533]
[1736608445806,1.5663,187.87,187.8,0.0533]
[1736608452399,6.1408,187.86,187.8,0.0533]
[1736608452603,20.0,187.83,187.8,0.0533]
[1736608461010,6.1408,187.86,187.8,0.0533]
[1736608461402,20.0,187.83,187.8,0.0533]
[1736608465093,6.1408,187.86,187.8,0.0533]
[1736608466726,20.0,187.83,187.8,0.0533]
[1736608469635,6.1408,187.86,187.8,0.0533]
[1736608470132,20.0,187.83,187.8,0.0533]
[1736608480628,17.0,187.83,187.8,0.0533]
[1736608481749,23.776884,187.75,187.68,8.24907902]
[1736608482944,20.0,187.72,187.58,141.665]
[1736608483182,20.0,187.7,187.58,15.12861511]
[1736608484074,20.0,187.7,187.59,10.45431511]
[1736608484663,20.0,187.7,187.56,1.5907]
[1736608484861,20.0,187.7,187.58,8.86361511]
[1736608487705,6.1969,187.68,187.56,1.5907]
[1736608488010,6.1969,187.68,187.57,8.86361511]
[1736608488807,6.1969,187.68,187.59,8.86361511]
[1736608492711,6.1969,187.68,187.62,8.86361511]
[1736608492712,20.0,187.68,187.62,8.86361511]
[1736608493078,20.0,187.68,187.63,8.86361511]
[1736608493407,1.5776,187.69,187.62,8.86361511]
[1736608493408,21.5776,187.69,187.62,8.86361511]
[1736608494690,21.5776,187.69,187.61,8.86361511]
[1736608495806,21.5776,187.69,187.6,8.86361511]
[1736608496804,21.5776,187.69,187.57,172.505184]
[1736608496805,21.5776,187.69,187.61,8.86361511]
[1736608498599,21.5776,187.69,187.6,8.86361511]
[1736608498798,21.5776,187.69,187.56,136.9907]
[1736608498995,23.776884,187.68,187.58,8.86361511]
[1736608499195,20.0,187.65,187.53,13.3305]
[1736608499425,20.0,187.65,187.57,8.86361511]
[1736608502512,6.601,187.64,187.53,13.3305]
[1736608502712,6.601,187.64,187.56,8.86361511]
[1736608505029,6.601,187.64,187.53,13.3305]
[1736608505329,6.601,187.64,187.57,8.86361511]
[1736608506428,1.5344,187.63,187.53,13.3305]
[1736608506637,1.5344,187.63,187.55,8.86361511]
[1736608507017,1.5344,187.63,187.56,8.86361511]
[1736608507831,1.5344,187.63,187.58,8.86361511]
[1736608508935,14.52518021,187.67,187.59,8.86361511]
[1736608509107,14.52518021,187.67,187.6,8.86361511]
[1736608510634,14.52518021,187.67,187.61,8.86361511]
[1736608511821,14.52518021,187.67,187.62,8.86361511]
[1736608512221,14.52518021,187.67,187.63,8.86361511]
[1736608512529,14.27518021,187.67,187.63,8.86361511]
[1736608514032,14.27518021,187.67,187.62,8.86361511]
[1736608516721,14.27518021,187.67,187.63,8.86361511]
[1736608517315,14.27518021,187.67,187.62,8.86361511]
[1736608518332,14.27518021,187.67,187.61,8.86361511]
[1736608519442,14.27518021,187.67,187.58,1.5527]
[1736608519627,14.27518021,187.67,187.59,8.86361511]
[1736608520946,14.27518021,187.67,187.6,8.86361511]
[1736608524845,14.27518021,187.67,187.61,8.86361511]
[1736608527748,14.27518021,187.67,187.6,8.86361511]
[1736608531547,14.27518021,187.67,187.61,8.86361511]
[1736608532138,14.27518021,187.67,187.62,8.86361511]
[1736608532339,14.27518021,187.67,187.63,8.86361511]
[1736608532653,14.27518021,187.67,187.65,8.86361511]
[1736608533255,14.27518021,187.67,187.64,8.86361511]
[1736608534839,14.27518021,187.67,187.63,8.86361511]
[1736608535021,14.27518021,187.67,187.64,8.86361511]
[1736608538159,14.27518021,187.67,187.59,148.7264]
[1736608538341,14.27518021,187.67,187.63,8.86361511]
[1736608541660,14.27518021,187.67,187.57,135.4]
[1736608541853,14.27518021,187.67,187.65,8.86361511]
[1736608542649,14.27518021,187.67,187.66,8.86361511]
[1736608550636,14.27518021,187.67,187.61,136.9829]
[1736608550870,14.27518021,187.67,187.61,8.86361511]
[1736608551163,14.27518021,187.67,187.59,22.19021511]
[1736608551341,14.27518021,187.67,187.6,8.86361511]
[1736608553938,14.27518021,187.67,187.59,13.3266]
[1736608554156,14.27518021,187.67,187.57,136.9038]
[1736608554340,14.27518021,187.67,187.58,8.86361511]
[1736608557379,14.27518021,187.67,187.56,13.3287]
[1736608557549,14.27518021,187.67,187.56,22.19231511]
[1736608559743,14.27518021,187.67,187.56,8.86361511]
[1736608559944,14.27518021,187.67,187.53,150.3751]
[1736608559945,8.0029,187.66,187.55,8.86361511]
[1736608560141,8.0029,187.66,187.53,13.3309]
[1736608560363,8.0029,187.66,187.54,8.86361511]
[1736608560572,8.0029,187.66,187.53,22.19451511]
[1736608560954,20.0,187.63,187.53,22.19451511]
[1736608562570,20.0,187.63,187.52,8.86361511]
[1736608564281,20.0,187.63,187.53,8.86361511]
[1736608567372,20.0,187.61,187.51,135.4]
[1736608567679,6.2853,187.6,187.48,135.4]
[1736608567881,1.5151,187.59,187.48,144.26361511]
[1736608568177,20.0,187.57,187.43,14.8505]
[1736608568380,20.0,187.57,187.47,8.86361511]
[1736608568552,20.0,187.57,187.44,23.776884]
[1736608568753,20.0,187.56,187.43,13.3377]
[1736608568958,20.0,187.56,187.45,8.86361511]
[1736608569172,7.8004,187.54,187.4,20.0]
[1736608569361,23.776884,187.53,187.42,8.86361511]
[1736608571478,23.776884,187.53,187.41,8.86361511]
[1736608571883,23.776884,187.53,187.39,70.0204]
[1736608572179,23.776884,187.53,187.41,8.86361511]
[1736608574492,23.776884,187.53,187.42,8.86361511]
[1736608575285,20.0,187.51,187.45,8.86361511]
[1736608575465,20.0,187.51,187.44,8.86361511]
[1736608575663,20.0,187.51,187.43,8.86361511]
[1736608576472,20.0,187.51,187.41,8.86361511]
[1736608576873,7.8004,187.54,187.37,13.3423]
[1736608576874,6.4428,187.49,187.37,13.3423]
[1736608577076,6.4428,187.49,187.39,8.86361511]
[1736608577296,20.0,187.45,187.37,8.86361511]
[1736608578083,20.0,187.46,187.35,8.86361511]
[1736608578289,20.0,187.46,187.36,8.86361511]
[1736608579196,20.0,187.46,187.37,8.86361511]
[1736608579576,20.0,187.46,187.34,13.3444]
[1736608579775,20.0,187.46,187.37,8.86361511]
[1736608582699,1.5571,187.45,187.34,13.3444]
[1736608582900,1.5571,187.45,187.36,8.86361511]
[1736608585112,1.5571,187.45,187.3,26.6942]
[1736608585317,1.5571,187.45,187.36,8.86361511]
[1736608586204,1.5571,187.45,187.37,8.86361511]
[1736608586510,1.5571,187.45,187.39,8.86361511]
[1736608589687,1.5571,187.45,187.4,8.86361511]
[1736608589887,1.5571,187.45,187.42,8.86361511]
[1736608590092,6.4428,187.49,187.42,8.86361511]
[1736608592012,6.4428,187.49,187.43,8.86361511]
[1736608593116,6.4428,187.49,187.44,8.86361511]
[1736608594712,1.5619,187.5,187.44,8.86361511]
[1736608595102,1.5619,187.5,187.45,8.86361511]
[1736608595423,6.6645,187.53,187.47,8.86361511]
[1736608595911,6.6645,187.53,187.41,23.776884]
[1736608596103,6.6645,187.53,187.44,8.86361511]
[1736608599612,20.0,187.49,187.36,13.3425]
[1736608599916,1.5848,187.48,187.36,13.3425]
[1736608600116,1.5848,187.48,187.38,8.86361511]
[1736608600612,1.5848,187.48,187.37,20.0]
[1736608600915,1.5848,187.48,187.38,8.86361511]
[1736608604915,1.5848,187.48,187.37,8.86361511]
[1736608605096,6.6154,187.47,187.37,8.86361511]
[1736608606026,6.6154,187.47,187.36,32.64049911]
[1736608606413,6.6154,187.47,187.36,8.86361511]
[1736608607109,6.6154,187.47,187.35,22.20701511]
[1736608607310,6.6154,187.47,187.36,8.86361511]
[1736608613016,6.6154,187.47,187.38,8.86361511]
[1736608616422,6.6154,187.47,187.37,8.86361511]
[1736608617140,6.6154,187.47,187.36,32.64049911]
[1736608618221,6.6154,187.47,187.36,23.776884]
[1736608618441,6.6154,187.47,187.34,28.86361511]
[1736608618442,1.5017,187.46,187.34,28.86361511]
[1736608618622,20.0,187.43,187.31,13.3468]
[1736608618941,20.0,187.43,187.33,8.86361511]
[1736608619313,8.0722,187.42,187.31,13.3468]
[1736608619543,8.0722,187.42,187.32,8.86361511]
[1736608619755,8.0722,187.42,187.33,8.86361511]
[1736608621543,8.0722,187.42,187.31,23.776884]
[1736608622047,8.0722,187.42,187.33,8.86361511]
[1736608623946,8.0722,187.42,187.34,8.86361511]
[1736608624646,8.0722,187.42,187.36,8.86361511]
[1736608625342,8.0722,187.42,187.32,13.3457]
[1736608625665,8.0722,187.42,187.33,8.86361511]
[1736608627243,8.0722,187.42,187.31,8.86361511]
[1736608627447,8.0722,187.42,187.28,13.3489]
[1736608627654,23.776884,187.41,187.29,8.86361511]
[1736608628171,20.0,187.38,187.29,8.86361511]
[1736608628345,6.4878,187.4,187.21,21.60277902]
[1736608628346,1.606,187.37,187.21,21.60277902]
[1736608628643,23.776884,187.36,187.25,7.86361511]
[1736608631456,21.606,187.37,187.27,8.86361511]
[1736608631647,21.606,187.37,187.28,8.86361511]
[1736608632035,21.606,187.37,187.24,23.776884]
[1736608632241,21.606,187.37,187.28,8.86361511]
[1736608632647,21.606,187.37,187.27,8.86361511]
[1736608633199,21.606,187.37,187.24,23.776884]
[1736608633374,21.606,187.37,187.25,8.86361511]
[1736608633669,20.0,187.36,187.25,8.86361511]
[1736608633960,20.0,187.36,187.26,8.86361511]
[1736608634151,43.776884,187.36,187.25,8.86361511]
[1736608634460,43.776884,187.36,187.23,13.3518]
[1736608634633,6.4944,187.35,187.24,8.86361511]
[1736608638373,20.0,187.32,187.2,23.776884]
[1736608638945,20.0,187.32,187.22,8.86361511]
[1736608639339,23.776884,187.31,187.19,13.3554]
[1736608639574,23.776884,187.31,187.19,22.21901511]
[1736608639575,6.4944,187.3,187.19,22.21901511]
[1736608639871,6.4944,187.3,187.2,8.86361511]
[1736608640342,6.4944,187.3,187.14,6.6434]
[1736608640343,20.0,187.27,187.16,13.3572]
[1736608640542,20.0,187.27,187.18,8.86361511]
[1736608640937,20.0,187.27,187.16,13.3572]
[1736608641144,20.0,187.27,187.17,8.86361511]
[1736608641588,8.0599,187.26,187.16,13.3572]
[1736608641755,8.0599,187.26,187.16,22.22081511]
[1736608641961,8.0599,187.26,187.16,8.86361511]
[1736608642252,20.0,187.23,187.13,13.3594]
[1736608642451,20.0,187.23,187.14,8.86361511]
[1736608643041,20.0,187.23,187.15,8.86361511]
[1736608643256,20.0,187.23,187.13,13.3594]
[1736608643578,20.0,187.23,187.15,8.86361511]
[1736608643777,20.0,187.22,187.09,13.3618]
[1736608643992,20.0,187.22,187.14,8.86361511]
[1736608644289,5.3407,187.25,187.14,8.86361511]
[1736608644290,20.0,187.23,187.14,8.86361511]
[1736608644474,20.0,187.23,187.15,8.86361511]
[1736608644658,20.0,187.23,187.1,23.776884]
[1736608644853,20.0,187.23,187.14,8.36361511]
[1736608645585,8.0599,187.26,187.17,8.86361511]
[1736608646453,8.0599,187.26,187.14,20.0]
[1736608646658,8.0599,187.26,187.16,8.86361511]
[1736608646877,8.0599,187.26,187.14,20.0]
[1736608647071,8.0599,187.26,187.15,8.86361511]
[1736608647768,20.0,187.23,187.14,8.86361511]
[1736608649460,20.0,187.23,187.12,13.3604]
[1736608649461,1.6105,187.21,187.08,13.3629]
[1736608649661,1.6105,187.21,187.12,8.86361511]
[1736608650573,6.1888,187.2,187.08,13.3629]
[1736608650867,6.1888,187.2,187.1,8.86361511]
[1736608651273,6.1888,187.2,187.08,13.3629]
[1736608651485,6.1888,187.2,187.09,8.86361511]
[1736608651779,6.1888,187.2,187.09,8.36361511]
[1736608651964,1.6197,187.16,187.02,7.8533]
[1736608652166,1.6197,187.16,187.07,3.86361511]
[1736608652672,1.6197,187.16,187.08,8.86361511]
[1736608655393,1.6197,187.16,187.1,8.86361511]
[1736608656288,1.6197,187.16,187.07,23.776884]
[1736608656477,1.6197,187.16,187.1,8.86361511]
[1736608656674,1.6197,187.16,187.11,8.86361511]
[1736608656982,1.6197,187.16,187.08,13.363]
[1736608656983,6.1888,187.2,187.13,8.86361511]
[1736608657692,6.1888,187.2,187.12,8.86361511]
[1736608659505,6.1888,187.2,187.08,13.363]
[1736608659801,6.1888,187.2,187.12,8.86361511]
[1736608663497,6.1888,187.2,187.13,8.86361511]
[1736608663700,8.1193,187.25,187.17,8.86361511]
[1736608663904,8.1193,187.25,187.18,8.86361511]
[1736608664083,8.1193,187.25,187.2,8.86361511]
[1736608664283,8.1193,187.25,187.19,8.86361511]
[1736608664485,8.1193,187.25,187.2,8.86361511]
[1736608664781,1.6197,187.25,187.2,8.86361511]
[1736608665181,1.6197,187.25,187.19,8.86361511]
[1736608665591,8.1193,187.3,187.2,8.86361511]
[1736608668085,8.1193,187.3,187.19,22.21881511]
[1736608672823,8.1193,187.3,187.2,8.86361511]
[1736608673410,8.1193,187.3,187.21,8.86361511]
[1736608675623,8.1193,187.3,187.23,8.86361511]
[1736608675788,8.1193,187.3,187.24,8.86361511]
[1736608676414,1.5916,187.34,187.25,8.86361511]
[1736608676830,1.5916,187.34,187.24,8.86361511]
[1736608677814,1.5916,187.34,187.23,8.86361511]
[1736608681425,1.5916,187.34,187.24,8.86361511]
[1736608681605,1.5916,187.34,187.23,8.86361511]
[1736608681789,1.5916,187.34,187.24,8.86361511]
[1736608682306,1.5916,187.34,187.25,8.86361511]
[1736608683717,1.5916,187.34,187.26,8.86361511]
[1736608684329,1.5916,187.34,187.24,32.64049911]
[1736608685622,1.5916,187.34,187.25,8.86361511]
[1736608687094,1.5916,187.34,187.26,23.776884]
[1736608688095,1.5916,187.34,187.28,8.86361511]
[1736608688507,1.5916,187.34,187.26,32.64049911]
[1736608688706,1.5916,187.34,187.26,23.776884]
[1736608689300,1.5916,187.34,187.25,22.21431511]
[1736608690733,1.5916,187.34,187.26,8.86361511]
[1736608692124,1.5916,187.34,187.25,8.86361511]
[1736608695525,1.5916,187.34,187.21,13.3539]
[1736608695910,20.0,187.32,187.21,20.0]
[1736608696108,20.0,187.32,187.21,28.86361511]
[1736608696829,20.0,187.32,187.21,8.86361511]
[1736608697630,20.0,187.3,187.21,8.86361511]
[1736608699632,20.0,187.3,187.22,8.86361511]
[1736608702833,20.0,187.3,187.21,8.86361511]
[1736608705235,5.3381,187.33,187.22,8.86361511]
[1736608711215,1.5916,187.34,187.22,8.86361511]
[1736608711422,20.0,187.32,187.24,8.86361511]
[1736608711618,20.0,187.32,187.25,8.86361511]
[1736608712529,1.5916,187.34,187.26,8.86361511]
[1736608713054,1.5916,187.34,187.25,8.86361511]
[1736608713833,1.5916,187.34,187.26,8.86361511]
[1736608714138,1.5916,187.34,187.27,8.86361511]
[1736608717851,1.5916,187.34,187.28,8.86361511]
[1736608719234,1.5916,187.34,187.27,8.86361511]
[1736608719628,1.5916,187.34,187.25,32.64049911]
[1736608719829,20.0,187.32,187.21,13.3538]
[1736608720021,20.0,187.32,187.22,23.776884]
[1736608720222,20.0,187.32,187.23,8.86361511]
[1736608720846,1.5916,187.34,187.23,8.86361511]
[1736608721123,20.0,187.32,187.22,23.776884]
[1736608721424,20.0,187.32,187.22,32.64049911]
[1736608721620,20.0,187.32,187.22,23.776884]
[1736608721850,20.0,187.32,187.22,32.64049911]
[1736608722050,20.0,187.32,187.22,23.776884]
[1736608722218,20.0,187.32,187.22,32.64049911]
[1736608722548,20.0,187.32,187.2,8.86361511]
[1736608724150,20.0,187.32,187.21,8.86361511]
[1736608728939,20.0,187.32,187.22,8.86361511]
[1736608730568,20.0,187.32,187.23,8.86361511]
[1736608734574,20.0,187.32,187.21,8.86361511]
[1736608734955,20.0,187.32,187.22,8.86361511]
[1736608736068,50.049284,187.33,187.2,13.3543]
[1736608736270,1.512,187.32,187.17,13.3566]
[1736608736570,1.512,187.27,187.16,8.86361511]
[1736608736791,21.512,187.27,187.17,23.776884]
[1736608736957,21.512,187.27,187.16,8.86361511]
[1736608737465,6.2724,187.26,187.16,8.86361511]
[1736608737671,6.2724,187.26,187.17,8.86361511]
[1736608738877,6.2724,187.26,187.18,8.86361511]
[1736608740495,6.2724,187.26,187.19,8.86361511]
[1736608740972,6.2724,187.26,187.18,8.86361511]
[1736608744301,6.2724,187.26,187.2,8.86361511]
[1736608744465,6.2724,187.26,187.19,8.86361511]
[1736608745292,6.2724,187.26,187.18,8.86361511]
[1736608745600,6.2724,187.26,187.17,8.86361511]
[1736608745837,20.0,187.23,187.15,8.86361511]
[1736608747596,20.0,187.23,187.16,8.86361511]
[1736608748806,6.2724,187.26,187.18,8.86361511]
[1736608748968,6.2724,187.26,187.19,8.86361511]
[1736608749581,6.2724,187.26,187.18,8.86361511]
[1736608749987,6.2724,187.26,187.19,8.86361511]
[1736608750217,6.2724,187.26,187.16,23.776884]
[1736608750218,6.2724,187.26,187.21,8.86361511]
[1736608750587,1.512,187.27,187.22,8.86361511]
[1736608751492,1.512,187.27,187.21,8.86361511]
[1736608752189,1.512,187.27,187.2,8.86361511]
[1736608752393,1.512,187.27,187.18,8.86361511]
[1736608752703,6.3404,187.26,187.18,8.86361511]
[1736608752886,6.3404,187.26,187.19,8.86361511]
[1736608754519,6.3404,187.26,187.18,8.86361511]
[1736608755318,6.3404,187.26,187.17,8.86361511]
[1736608755704,6.3404,187.26,187.15,8.86361511]
[1736608757596,6.3404,187.26,187.16,8.86361511]
[1736608759320,6.3404,187.26,187.17,8.86361511]
[1736608761020,6.3404,187.26,187.16,8.86361511]
[1736608761716,6.3404,187.26,187.15,8.86361511]
[1736608762502,6.3404,187.26,187.16,8.86361511]
[1736608764636,6.3404,187.26,187.17,8.86361511]
[1736608767239,6.3404,187.26,187.19,8.86361511]
[1736608767440,6.3404,187.26,187.2,8.86361511]
[1736608767941,6.3404,187.26,187.21,8.86361511]
[1736608769418,6.3404,187.26,187.2,8.86361511]
[1736608769858,6.3404,187.26,187.18,13.3559]
[1736608769859,6.3404,187.26,187.19,8.86361511]
[1736608770065,6.3404,187.26,187.19,32.64049911]
[1736608770351,6.3404,187.26,187.19,8.86361511]
[1736608770533,6.3404,187.26,187.18,8.86361511]
[1736608772446,6.3404,187.26,187.17,8.86361511]
[1736608773339,1.77583433,187.26,187.17,8.86361511]
[1736608773541,21.512,187.27,187.19,8.86361511]
[1736608773841,21.512,187.27,187.2,8.86361511]
[1736608774533,21.512,187.27,187.19,8.86361511]
[1736608774736,21.512,187.27,187.18,8.86361511]
[1736608775541,21.512,187.27,187.16,8.86361511]
[1736608775845,21.512,187.27,187.15,22.22181511]
[1736608776351,6.0931,187.26,187.15,22.22181511]
[1736608777025,6.0931,187.26,187.14,8.86361511]
[1736608777224,1.6556,187.25,187.14,8.86361511]
[1736608781430,1.6556,187.25,187.17,8.86361511]
[1736608782452,1.6556,187.25,187.15,8.86361511]
[1736608783550,20.0,187.23,187.11,37.137984]
[1736608783754,20.0,187.23,187.16,8.86361511]
[1736608786753,1.6556,187.25,187.16,8.86361511]
[1736608787053,20.0,187.23,187.16,8.86361511]
[1736608800949,1.6556,187.25,187.18,8.86361511]
[1736608801154,1.6556,187.25,187.2,8.86361511]
[1736608802668,1.6556,187.25,187.18,8.86361511]
[1736608802842,1.6556,187.25,187.13,6.2554]
[1736608802843,1.6556,187.25,187.17,8.86361511]
[1736608803042,1.6556,187.25,187.16,8.86361511]
[1736608803247,20.0,187.23,187.09,13.3623]
[1736608803446,1.5451,187.22,187.12,8.86361511]
[1736608803655,21.5451,187.22,187.12,8.86361511]
[1736608803867,20.0,187.18,187.07,8.24814108]
[1736608804063,20.0,187.18,187.07,23.776884]
[1736608804270,20.0,187.18,187.11,8.86361511]
[1736608805468,1.5451,187.17,187.06,13.3644]
[1736608805669,1.5451,187.17,187.1,8.86361511]
[1736608806564,1.5451,187.17,187.03,6.2554]
[1736608806878,21.5451,187.17,187.09,8.86361511]
[1736608807251,20.0,187.13,187.03,13.3667]
[1736608807453,20.0,187.13,187.08,8.86361511]
[1736608812576,20.0,187.13,187.07,8.86361511]
[1736608812968,20.0,187.13,187.08,8.86361511]
[1736608813164,6.2098,187.16,187.0,0.80169285]
[1736608813484,6.2098,187.16,186.99,6.5261]
[1736608813485,20.0,187.13,187.06,8.86361511]
[1736608814276,20.0,187.13,187.07,8.86361511]
[1736608815374,20.0,187.13,187.03,23.776884]
[1736608815375,20.0,187.13,187.08,8.86361511]
[1736608815567,20.0,187.13,187.09,8.86361511]
[1736608816577,20.0,187.13,187.04,13.3661]
[1736608816578,20.0,187.13,187.08,8.86361511]
[1736608818686,20.0,187.13,187.07,8.86361511]
[1736608820583,21.5451,187.17,187.09,8.86361511]
[1736608821594,21.5451,187.17,187.08,8.86361511]
[1736608823163,21.5451,187.17,187.07,32.64049911]
[1736608827588,20.0,187.16,187.07,32.64049911]
[1736608827990,20.0,187.16,187.04,23.776884]
[1736608828194,20.0,187.16,187.07,23.776884]
[1736608828368,26.8879,187.17,187.03,13.3665]
[1736608828570,26.8879,187.17,187.03,8.86361511]
[1736608829469,6.6656,187.16,187.03,8.86361511]
[1736608829673,20.0,187.12,187.04,23.776884]
[1736608830971,1.6487,187.11,186.99,7.32773412]
[1736608831274,1.6487,187.11,186.99,15.38971511]
[1736608831472,1.6487,187.11,187.0,23.776884]
[1736608831674,1.6487,187.11,187.0,32.64049911]
[1736608831984,1.6487,187.11,187.0,23.776884]
[1736608832175,1.6487,187.11,187.0,8.86361511]
[1736608832374,6.022,187.1,186.99,8.86361511]
[1736608833875,6.022,187.1,187.02,8.86361511]
[1736608834071,6.022,187.1,187.03,23.776884]
[1736608835579,6.022,187.1,187.02,23.776884]
[1736608836077,6.022,187.1,187.02,8.86361511]
[1736608837004,1.6487,187.11,187.02,8.86361511]
[1736608838389,1.6487,187.11,187.05,8.86361511]
[1736608838587,6.022,187.14,187.05,8.86361511]
[1736608839002,6.022,187.14,187.04,8.86361511]
[1736608841802,6.022,187.14,187.06,23.776884]
[1736608846317,6.022,187.14,187.06,8.86361511]
[1736608848325,6.022,187.14,187.05,8.86361511]
[1736608848619,6.022,187.14,187.04,8.86361511]
[1736608848810,6.022,187.14,187.02,8.86361511]
[1736608849015,6.022,187.14,186.98,13.3702]
[1736608849202,6.022,187.14,187.01,8.86361511]
[1736608849730,6.022,187.14,187.02,23.776884]
[1736608850235,6.022,187.14,187.02,32.64049911]
[1736608850521,20.0,187.11,187.01,8.86361511]
[1736608850717,1.56,187.1,187.01,8.86361511]
[1736608851219,1.56,187.1,187.02,23.776884]
[1736608854529,1.56,187.1,187.03,23.776884]
[1736608855131,1.56,187.1,187.05,8.86361511]
[1736608855331,1.56,187.1,187.04,8.86361511]
[1736608855704,1.56,187.1,187.03,32.64049911]
[1736608857634,1.56,187.1,187.04,8.86361511]
[1736608862536,1.56,187.1,187.0,8.86361511]
[1736608862708,1.56,187.1,187.0,32.64049911]
[1736608862914,1.56,187.1,187.01,23.776884]
[1736608863127,1.56,187.1,187.0,32.64049911]
[1736608863450,1.56,187.1,186.98,8.86361511]
[1736608863733,6.1287,187.09,186.98,8.86361511]
[1736608864219,6.1287,187.09,186.99,23.776884]
[1736608866644,6.1287,187.09,186.98,8.86361511]
[1736608867250,6.1287,187.09,186.96,13.3715]
[1736608867544,6.1287,187.09,186.96,22.23511511]
[1736608867743,6.9768,187.08,186.92,15.0286]
[1736608867950,6.9768,187.08,186.95,8.86361511]
[1736608868413,6.9768,187.08,186.96,8.86361511]
[1736608869853,1.6315,187.08,186.99,8.86361511]
[1736608870226,1.6315,187.08,186.98,8.86361511]
[1736608870533,1.6315,187.08,186.97,8.86361511]
[1736608872034,1.6315,187.08,186.93,59.23134444]
[1736608872344,1.6315,187.08,186.97,8.86361511]
[1736608875655,1.6315,187.08,186.98,8.86361511]
[1736608876253,6.9768,187.08,186.97,8.86361511]
[1736608878244,20.0,187.06,186.98,8.86361511]
[1736608878452,1.6315,187.08,187.01,8.86361511]
[1736608878761,1.6315,187.08,187.02,8.86361511]
[1736608879467,1.6315,187.08,186.96,0.80193658]
[1736608879668,1.6315,187.08,186.95,13.3721]
[1736608879954,1.6315,187.08,186.96,0.8019885]
[1736608880126,1.6315,187.08,187.0,8.86361511]
[1736608880544,1.6315,187.08,186.95,13.3721]
[1736608880749,6.1957,187.07,186.99,8.86361511]
[1736608880973,6.1957,187.07,186.98,8.86361511]
[1736608881137,6.1957,187.07,187.0,8.86361511]
[1736608883491,6.1957,187.07,187.01,8.86361511]
[1736608885464,6.1957,187.07,187.0,8.86361511]
[1736608886166,6.1957,187.07,186.99,8.86361511]
[1736608889761,6.1957,187.07,187.0,8.86361511]
[1736608890549,1.6315,187.08,187.02,8.86361511]
[1736608890957,1.6315,187.08,187.01,8.86361511]
[1736608891158,1.6315,187.08,187.0,8.86361511]
[1736608891560,21.6315,187.08,186.99,8.86361511]
[1736608892674,21.6315,187.08,186.98,8.86361511]
[1736608896554,1.6315,187.08,186.98,8.86361511]
[1736608897087,1.6315,187.08,187.0,8.86361511]
[1736608897583,1.6315,187.08,186.99,8.86361511]
[1736608905488,1.6315,187.08,187.01,8.86361511]
[1736608905993,1.6315,187.08,187.0,8.86361511]
[1736608907382,1.6315,187.08,187.01,8.86361511]
[1736608910973,1.6315,187.08,187.0,8.86361511]
[1736608911694,1.6315,187.08,187.01,8.86361511]
[1736608912598,20.0,187.07,186.99,8.86361511]
[1736608912889,20.0,187.07,186.99,23.776884]
[1736608913101,1.6315,187.08,186.98,8.86361511]
[1736608913288,6.9769,187.08,186.97,8.86361511]
[1736608913673,6.9769,187.08,186.98,8.86361511]
[1736608917673,6.9769,187.08,186.99,8.86361511]
[1736608918190,6.9769,187.08,187.01,8.86361511]
[1736608918374,21.6315,187.08,187.01,8.86361511]
[1736608920587,21.6315,187.08,187.0,8.86361511]
[1736608921806,21.6315,187.08,187.01,23.776884]
[1736608922097,21.6315,187.08,187.02,8.86361511]
[1736608922398,21.6315,187.08,187.01,8.86361511]
[1736608924104,14.12701675,187.13,187.08,23.776884]
[1736608924304,14.12701675,187.13,187.12,8.86361511]
[1736608924609,50.20071354,187.16,187.12,8.86361511]
[1736608924792,50.20071354,187.16,187.13,8.86361511]
[1736608925101,50.20071354,187.16,187.14,8.86361511]
[1736608925313,1.6308,187.21,187.14,8.86361511]